Cogmind - Beta 12 @@@ ROGUE MODE // 2024.01.04 @ 15:21:51 Player: Darcyisverycute Result: Destroyed by D-53 Grenadier with Mini Grenade Launcher Performance ------------- Evolutions (1) 500 Regions Visited (4) 800 Robots Destroyed (17) 85 Value Destroyed (441) 441 Prototype IDs (3) 60 Alien Tech Used (0) 0 Bonus (0) 0 TOTAL SCORE: 1886 Bonus ------- None Cogmind --------- Core Integrity 0/400 Matter 230/300 Energy 29/250 System Corruption 0% Temperature Cool (0) Movement Hovering (53) Location -9/Mines Parts ------- > --- POWER (1) -------- Ion Engine > --- PROPULSION (4) --- Hover Unit Hover Unit Hover Unit Combat Airjet > --- UTILITY (2) ------ Large Storage Unit Weapon Shielding > --- WEAPON (2) ------- Hammer > --- INVENTORY (15) --- Hover Unit Hover Unit High-capacity Storage Unit Sensor Array Signal Interpreter Shield Generator Tractor Beam Sensor Drone Bay (20/20) Peak State ------------ > --- POWER ------------ Improved Ion Engine > --- PROPULSION ------- Light Treads Light Treads Light Treads Light Treads > --- UTILITY ---------- Large Storage Unit Sensor Drone Bay > --- WEAPON ----------- Medium Laser Heavy Assault Rifle > --- INVENTORY -------- Ion Engine Hover Unit Hover Unit Hover Unit Hover Unit Hover Unit High-capacity Storage Unit Sensor Array Signal Interpreter Salvage Targeting Computer Weapon Shielding Shield Generator Tractor Beam Small Laser Hammer [Rating: 19] Favorites ----------- Power Ion Engine Engine Ion Engine Propulsion Light Treads Treads Light Treads Leg Aluminum Leg Wheel Armored Wheel Hover Unit Hover Unit Utility Large Storage Unit Device Sensor Drone Bay Storage Large Storage Unit Protection Weapon Shielding Weapon Medium Laser Energy Gun Medium Laser Ballistic Gun Light Assault Rifle Impact Weapon Hammer Build | -11 -10 -10 -9 -9 ------- Run | Jun Mat Min Mat Min Slots Evolved 2 | . . . 2 . Power . | . . . . . Propulsion 2 | . . . 2 . Utility . | . . . . . Weapon . | . . . . . Parts Attached 27 | 6 4 . 7 10 Power 3 | 1 . . 1 1 Engine 3 | 1 . . 1 1 Core . | . . . . . Reactor . | . . . . . Propulsion 14 | 2 2 . 5 5 Treads 6 | . 2 . 4 . Leg 2 | 2 . . . . Wheel 1 | . . . 1 . Hover 5 | . . . . 5 Flight . | . . . . . Utility 5 | 1 2 . . 2 Device 1 | . . . . 1 Storage 2 | 1 1 . . . Processor . | . . . . . Hackware . | . . . . . Protection 2 | . 1 . . 1 Artifact . | . . . . . Weapon 5 | 2 . . 1 2 Energy Gun 2 | 1 . . . 1 Energy Cannon . | . . . . . Ballistic Gun 2 | 1 . . 1 . Ballistic Cannon . | . . . . . Launcher . | . . . . . Special Weapon . | . . . . . Impact Weapon 1 | . . . . 1 Slashing Weapon . | . . . . . Piercing Weapon . | . . . . . Special Melee Weapon . | . . . . . Unidentified Prototypes 1 | . . . . 1 Parts Lost 8 | . . . . 8 Power 1 | . . . . 1 Propulsion 4 | . . . . 4 Utility . | . . . . . Weapon 3 | . . . . 3 Highest Loss Streak 8 | . . . . 8 To Critical Strikes . | . . . . . Average Slot Usage (%) 94 | . 97 100 96 85 Engine 11 | . 14 14 11 10 Treads 32 | . 23 28 33 39 Wheel 2 | . . . 6 . Storage 12 | . 14 14 11 11 Protection 8 | . 11 14 11 1 Energy Gun 11 | . 14 14 11 10 Ballistic Gun 11 | . 14 14 11 9 Naked Turns . | . . . . . Heaviest Build 33 | 13 29 29 33 33 Greatest Support 80 | 20 40 40 80 80 Greatest Overweight (x) 9 | . 9 . 2 1 Average Overweight (x) . | . . . . . Largest Inventory Capacity 15 | 8 15 15 15 15 Average Capacity 14 | 7 14 15 15 15 Most Carried 15 | 4 15 14 15 15 Average Carried 12 | 1 10 13 14 14 Final Capacity 15 | 8 15 15 15 15 Final Carried 15 | 4 15 13 14 8 Class Distribution -------------------- 100% | Mutant Dominant Class ---------------- Mutant | -10/Materials Mutant | -10/Mines Mutant | -9/Materials Mutant | -9/Mines Resources | -11 -10 -10 -9 -9 ----------- Run | Jun Mat Min Mat Min Matter Collected 464 | 264 . . 153 47 Remotely . | . . . . . Salvage Created 648 | 60 19 . 418 151 Parts 39 | 2 2 . 29 6 Haulers Intercepted 2 | . . . 2 . Recyclers Shooed . | . . . . . Parts Field Recycled . | . . . . . Retrieved Matter . | . . . . . Parts Self-Destructed . | . . . . . Prevented . | . . . . . Kills | -11 -10 -10 -9 -9 ------- Run | Jun Mat Min Mat Min Combat Hostiles Destroyed 12 | . 1 . 5 6 Guns 11 | . 1 . 4 6 Classes Destroyed 7 | 1 1 . 3 2 Hauler 2 | . . . 2 . Recycler 1 | 1 . . . . Watcher 2 | . . . 2 . Swarmer 4 | . 1 . . 3 Grunt 2 | . . . . 2 Sentry 5 | . . . 5 . Demolisher 1 | . . . . 1 Best Kill Streak 4 | 1 1 . 3 4 Combat Bots Only 4 | . 1 . 3 4 Max Kills in Single Turn 1 | 1 1 . 1 1 Gunslinging . | . . . . . Exploded . | . . . . . Melee . | . . . . . Uniques/NPCs Destroyed . | . . . . . Combat | -11 -10 -10 -9 -9 -------- Run | Jun Mat Min Mat Min Damage Taken 1577 | . 32 . 383 1162 Core 429 | . 9 . 60 360 Absorbed by Shields . | . . . . . Redirected to Shielding 32 | . . . 15 17 Core Remaining (%) 98 | 100 . 96 . . Volleys Fired 54 | 4 1 . 28 21 Largest 2 | 2 2 . 2 2 Hottest 90 | 70 70 . 73 90 Shots Fired 105 | 8 2 . 56 39 Gun 105 | 8 2 . 56 39 Cannon . | . . . . . Launcher . | . . . . . Special . | . . . . . Kinetic 47 | 4 1 . 28 14 Thermal 58 | 4 1 . 28 25 Explosive . | . . . . . Electromagnetic . | . . . . . Robot Hit Streak 29 | 3 1 . 20 29 Robot Miss Streak 2 | 1 1 . 2 2 Penetration Max . | . . . . . Secondary Targets 2 | . . . 1 1 Max Gunslinging Chain 1 | . . . 1 1 Shots Hit Robots 80 | 6 1 . 42 31 Core Hits 30 | 2 1 . 17 10 Critical Kills . | . . . . . Critical Parts Destroyed . | . . . . . Critical Strikes 7 | 1 . . 4 2 Burn 7 | 1 . . 4 2 Melee Attacks 2 | . . . . 2 Impact 2 | . . . . 2 Slashing . | . . . . . Piercing . | . . . . . Sneak Attacks . | . . . . . Combat Hostiles . | . . . . . Follow-up Attacks . | . . . . . Damage Inflicted 980 | 66 10 . 479 425 Guns 951 | 66 10 . 479 396 Cannons . | . . . . . Explosions . | . . . . . Melee 29 | . . . . 29 Ramming . | . . . . . Kinetic 416 | 28 10 . 216 162 Thermal 535 | 38 . . 263 234 Explosive . | . . . . . Electromagnetic . | . . . . . Impact 29 | . . . . 29 Slashing . | . . . . . Piercing . | . . . . . Highest Corruption . | . . . . . Average Corruption . | . . . . . Corruption Purged . | . . . . . Corruption Blocked . | . . . . . Overload Shots . | . . . . . Overflow Damage . | . . . . . Projectiles . | . . . . . Explosions . | . . . . . Melee . | . . . . . Knockbacks . | . . . . . Impact . | . . . . . Kinetic . | . . . . . Secondary . | . . . . . Self-Inflicted Damage . | . . . . . Shots . | . . . . . Rammed 1 | . . . . 1 Targets Rammed 1 | . . . . 1 Kicked . | . . . . . Crushed . | . . . . . Highest Temperature 168 | 60 30 . 70 168 Average Temperature 41 | 30 19 . 18 72 Received Heat Transfer 201 | . . . 108 93 Siege Activations . | . . . . . Robots Corrupted . | . . . . . Combat Hostiles . | . . . . . Parts Fried . | . . . . . Impact Corruptions . | . . . . . Robots Melted 1 | . . . 1 . Combat Hostiles 1 | . . . 1 . Parts Melted 5 | . . . 4 1 Heat Transferred 2085 | 185 . . 1073 827 Parts Sabotaged . | . . . . . Parts Stolen . | . . . . . Parts Stripped . | . . . . . Power Chain Reactions . | . . . . . Missiles Intercepted . | . . . . . Alert | -11 -10 -10 -9 -9 ------- Run | Jun Mat Min Mat Min Peak Influence 168 | 5 38 14 168 155 Initial 35 | . 3 14 5 35 Average 60 | 1 7 14 79 108 Maximum Alert Level . | . . . . . Low Security (%) 100 | 100 100 100 100 100 Level 1 . | . . . . . Level 2 . | . . . . . Level 3 . | . . . . . Level 4 . | . . . . . Level 5 . | . . . . . High Security . | . . . . . Max Security . | . . . . . Squads Dispatched 1 | . 1 . . . Investigation 1 | . 1 . . . Extermination . | . . . . . Reinforcement . | . . . . . Assault . | . . . . . Garrison . | . . . . . Intercept . | . . . . . Searches Triggered . | . . . . . Construction Impeded . | . . . . . Haulers Reinforced . | . . . . . Active Scanning Responses . | . . . . . Cargo Convoy Interrupts . | . . . . . Stealth | -11 -10 -10 -9 -9 --------- Run | Jun Mat Min Mat Min Distress Signals 3 | . 1 . 2 . Communications Jammed . | . . . . . Distress Signals . | . . . . . Times Spotted 35 | . 2 . 10 23 Peak Tracking Total 16 | . 2 . 3 16 Tactical Retreats . | . . . . . Traps | -11 -10 -10 -9 -9 ------- Run | Jun Mat Min Mat Min Traps Triggered . | . . . . . Indirectly . | . . . . . Trap Hack Attempts . | . . . . . Triggered . | . . . . . Disarmed . | . . . . . Reprogrammed . | . . . . . Reused . | . . . . . Traps Extracted . | . . . . . Installed . | . . . . . Triggered . | . . . . . Machines | -11 -10 -10 -9 -9 ---------- Run | Jun Mat Min Mat Min Machines Disabled . | . . . . . Max in Single Turn . | . . . . . Machines Repaired . | . . . . . Machines Sabotaged . | . . . . . Overloaded Fab Kills . | . . . . . Hacking | -11 -10 -10 -9 -9 --------- Run | Jun Mat Min Mat Min Machines Accessed 6 | . 4 . 1 1 Terminals 3 | . 3 . . . Fabricators . | . . . . . Repair Stations . | . . . . . Recycling Units 1 | . 1 . . . Scanalyzers 1 | . . . 1 . Garrison Access . | . . . . . Total Hacks 18 | . 11 . 6 1 Successful 11 | . 4 . 6 1 Failed 7 | . 7 . . . Catastrophic 1 | . 1 . . . Database Lockouts . | . . . . . Manual 2 | . 2 . . . Terminals 8 | . 8 . . . Fabricators . | . . . . . Repair Stations . | . . . . . Recycling Units 3 | . 3 . . . Scanalyzers 6 | . . . 6 . Garrison Access . | . . . . . Terminal Hacks 3 | . 2 . . 1 Prototype ID Bank 1 | . 1 . . . Open Door 1 | . . . . 1 Branch Access Points 1 | . 1 . . . Fabricator Hacks . | . . . . . Repair Station Hacks . | . . . . . Recycling Unit Hacks 2 | . 2 . . . Process 1 | . 1 . . . Report Inventory 1 | . 1 . . . Scanalyzer 6 | . . . 6 . Insert Component 3 | . . . 3 . Analyze 3 | . . . 3 . Garrison Access Hacks . | . . . . . Unauthorized Hacks . | . . . . . Terminals . | . . . . . Fabricators . | . . . . . Repair Stations . | . . . . . Recycling Units . | . . . . . Scanalyzers . | . . . . . Garrison Access . | . . . . . Data Cores Recovered . | . . . . . Used . | . . . . . Hacking Detections 5 | . 4 . 1 . Full Trace Events 1 | . 1 . . . Feedback Events . | . . . . . Feedback Blocked . | . . . . . Robot Schematics Acquired . | . . . . . Robots Built . | . . . . . Authchips . | . . . . . Time . | . . . . . Total Robot Build Rating . | . . . . . Part Schematics Acquired 2 | . . . 2 . Parts Built . | . . . . . Authchips . | . . . . . Time . | . . . . . Total Part Build Rating . | . . . . . Parts Repaired . | . . . . . Time . | . . . . . Parts Recycled . | . . . . . Recycled Matter 3 | . 3 . . . Retrieved Matter . | . . . . . Retrieved Components . | . . . . . Parts Scanalyzed 3 | . . . 3 . Part Schematics Acquired 2 | . . . 2 . Parts Damaged . | . . . . . Bothacking | -11 -10 -10 -9 -9 ------------ Run | Jun Mat Min Mat Min Used RIF Installer . | . . . . . Robots Hacked . | . . . . . Non-combat . | . . . . . Combat . | . . . . . Robot Hacks Applied . | . . . . . Relay Couplers Released . | . . . . . Fabnet Peak Effective % . | . . . . . Robots Rewired . | . . . . . Allies Hacked . | . . . . . Hacks Repelled . | . . . . . Allies | -11 -10 -10 -9 -9 -------- Run | Jun Mat Min Mat Min Total Allies . | . . . . . Largest Group . | . . . . . Highest-Rated Group . | . . . . . Highest-Rated Ally . | . . . . . Total Orders . | . . . . . Ally Attacks . | . . . . . Total Damage . | . . . . . Kills . | . . . . . Allies Corrupted . | . . . . . Allies Melted . | . . . . . Intel | -11 -10 -10 -9 -9 ------- Run | Jun Mat Min Mat Min Robot Analysis Total . | . . . . . Derelict Logs Recovered . | . . . . . Drone Launches . | . . . . . Drone Recoveries . | . . . . . Exploration | -11 -10 -10 -9 -9 ------------- Run | Jun Mat Min Mat Min Turns Passed 1263 | 69 275 121 497 301 Spaces Moved 615 | 41 154 74 209 137 Core 6 | 5 1 . . . Treads 502 | . 130 74 167 131 Legs 59 | 36 23 . . . Wheels 42 | . . . 42 . Hover 6 | . . . . 6 Flight . | . . . . . Fastest Speed 50 | 50 120 160 120 53 Average Speed 163 | 111 164 160 177 156 Slowest Speed 500 | 120 500 160 240 160 Overloaded Moves . | . . . . . Propulsion Burnouts . | . . . . . Robots Hopped . | . . . . . Cave-ins Triggered . | . . . . . Exploration Rate (%) 25 | 5 28 22 25 46 Regions Visited 4 Branch Regions 2 Pre-discovered Areas . | . . . . . Known Exits Taken 1 | . 1 . . . Unknown Exits Taken 3 | 1 . 1 1 . Scrap Searched 1 | . . . . 1 Spaces Dug . | . . . . . Terrain Destroyed . | . . . . . Melee . | . . . . . Projectile . | . . . . . AOE . | . . . . . Terrain Rammed . | . . . . . Walls Destroyed . | . . . . . Machines Disabled . | . . . . . Actions | -11 -10 -10 -9 -9 --------- Run | Jun Mat Min Mat Min Total 774 | 54 174 78 284 184 Wait 38 | . 3 3 25 7 Move 611 | 40 153 73 208 137 Hop . | . . . . . Pick Up 21 | 4 9 . 7 1 Fast Attach 14 | 6 4 . 2 2 Attach 9 | . . . 1 8 Detach 6 | . 3 . . 3 Swap 4 | . . . 4 . Drop 14 | . 1 2 9 2 Fire 54 | 4 1 . 28 21 Melee 2 | . . . . 2 Ram . | . . . . . Kick . | . . . . . Crush 1 | . . . . 1 Escape Stasis . | . . . . . Rewire . | . . . . . Trap . | . . . . . Miscellaneous . | . . . . . Route ------- -11/Junkyard -10/Materials -10/Mines -9/Materials -9/Mines History --------- Turn | Location | Event 3 | -11/Junkyard | Discovered new exit (range 15) 70 | -11/Junkyard | Entered Materials 154 | -10/Materials | Identified exit to Mines 300 | -10/Materials | Build established: Mutant 345 | -10/Materials | Entered Mines 457 | -10/Mines | Discovered new exit (range 5) 466 | -10/Mines | Entered Materials 466 | -9/Materials | Evolved 2 slots: Propulsion x2 955 | -9/Materials | Discovered new exit (range 6) 963 | -9/Materials | Entered Mines 972 | -9/Mines | Found the Drone Emporium 980 | -9/Mines | Found Prototype Device 980 | -9/Mines | Identified Sensor Drone Bay 1192 | -9/Mines | Assembled infested the area 1197 | -9/Mines | Assisted by a Guerilla fighting off Assembled 1240 | -9/Mines | Core integrity fell below 50% 1248 | -9/Mines | Core integrity fell below 20% 1264 | -9/Mines | Destroyed by D-53 Grenadier with Mini Grenade Launcher Last Messages --------------- 01240_ U-05 Engineer lays Concrete. 01242_ The unstable cave ceiling collapses. 01242_ U-05 Engineer lays Concrete. 01243_ Lgt. Treads destroyed. 01244_ U-05 Engineer lays Concrete. 01247_ The unstable cave ceiling collapses. 01247_ U-05 Engineer lays Concrete. 01247_ Med. Laser destroyed. 01248_ U-05 Engineer lays Concrete. 01251_ The unstable cave ceiling collapses. 01251_ U-05 Engineer lays Concrete. 01254_ The unstable cave ceiling collapses. 01254_ U-05 Engineer lays Concrete. 01255_ The unstable cave ceiling collapses. 01255_ U-05 Engineer lays Concrete. 01256_ U-05 Engineer destroyed. 01257_ Acquired Cmb. Airjet. 01258_ The unstable cave ceiling collapses. 01262_ R-06 Scavenger collects Sml. Storage Unit. 01264_ The unstable cave ceiling collapses. Map ----- +----------------------------------------------------+ | # #???????????? ?????????????# #??????????? | | # #?#########??# ????????????## #??????????? | | ### ## ##?# #??????????### ##?????????? | | #### ###%#?????????## ####??????? | | ### ! ## #????????## ##?????? | | ##! ## # ####????## #?????? | | # ! #### %%% %##??## #?????? | | ##??## =%]##?# ##?????? | | #????#! ### ### ######??????? | | = #????####?# % ##???????????? | | #?????????# #####????????????? | | ##?????????## ##????????????????? | | #######???????????# ##?????????????????? | | ???????????????## #??????????????????? | | ??????????????## """ ######## ??????? | | ???????????? """ #??????? | | ???????????? """ % #??????? | | ???????????# ######## ??????? | | ???????????##### ## # ##????? ???????? | | ???????????????## a ### t# # ##????????????? | | ????????????????# ## #????????????? | | ????????????????# # # ##????????????? | | ???????????????# ## #????????????? | | ??????????????? ## ?# r #????????????? | | ??????????????? ??# ?# #????????????? | | ??????????????? ???? ?# @ #????????????? | | ???????????????????? # d ##????????????? | | ???????????????????# ####?????????????? | | ?????????????????? ##????????????????? | | ??????????????????###a ##?????????????????? | | ???????????????????# #??????????????????? | | ???????????????????# # ##??????????????????? | | ???????????????????## ##???????????????????? | | ???????????????????# ????????????????????? | | ???????????????????##=% #????????????????????? | | ???????????????????# %| ####????????????????????? | | ???????????????????# ! #????????????????????????? | | ???????????????????# ?????????????????????????? | | ??????????????????? ?????????????????????????? | | ????????????????????? ?????????????????????????? | | ?????????????????????????????????????????????????? | | ?????????????????????????????????????????????????? | | ?????????????????????????????????????????????????? | | ?????????????????????????????????????????????????? | | ?????????????????????????????????????????????????? | | ?????????????????????????????????????????????????? | | ?????????????????????????????????????????????????? | | ?????????????????????????????????????????????????? | | ?????????????????????????????????????????????????? | | ?????????????????????????????????????????????????? | +----------------------------------------------------+ Best States ------------- Heat Dissipation 28 Energy Generation 12 Energy Capacity 265 Matter Stores 300 Matter Capacity 300 Sight Range 16 Terrain Scan Density 10 Weapon Shielding 33 Evasion (%) 55 Recoil Reduction 4 Item Schematics ----------------- Hover Unit | -9/Materials | Scanalyzed Salvage Targeting Computer | -9/Materials | Scanalyzed Robot Schematics ------------------ None Fabricated ------------ Nothing Alien Tech Used ----------------- None Achievements -------------- None Challenges ------------ None Game ------ Seed RecyclingFlakNetwork Manual? 0 Play Time 00:17:29 Cumulative 45.7 hours Start 2024.01.03 @ 17:38:41 End 2024.01.04 @ 15:21:51 Sessions 2 Manual Loads 0 Difficulty Rogue Special Mode None Game No. 14 Rogue 6 Adventurer 8 Explorer 0 Win Type - Total 1 Types 1/0/0/0/0/0/0/0/0 Lore% 30 Gallery% 39 Achievement% 34 Wizard Run 0 Options --------- ASCII 0 Keyboard 1 Movement Numpad Keybinds 1 Fullscreen 2 Font 18/TerminusBold Map View 76x50 Tactical HUD 1 Map Filters NONE Filters NONE Steam 0 RUN: f8d60252-e789-4452-93bc-2cdfba6990e5